bitfinex-derivatives/quotes_ETHF0:USTF0_20241013
["timestamp","ask_amount","ask_price","bid_price","bid_amount"]
[1728835032366,1.73952,2442.0,2441.9,4.43117259]
[1728835033068,1.73952,2442.0,2441.9,4.43101755]
[1728835033268,1.33,2442.0,2441.9,4.43101755]
[1728835033565,1.73952,2442.0,2441.9,3.28463798]
[1728835033873,1.73952,2442.0,2441.9,3.69416798]
[1728835034465,1.73952,2442.0,2441.9,3.28463798]
[1728835034666,1.73952,2442.0,2441.9,2.2109]
[1728835035875,1.73952,2442.0,2441.7,2.14573798]
[1728835035876,0.40955,2441.8,2441.7,2.14573798]
[1728835036069,0.40955,2441.8,2441.6,1.07373798]
[1728835036070,0.40957,2441.7,2441.6,1.07373798]
[1728835036273,0.40965,2441.2,2441.1,2.23263798]
[1728835036480,0.40965,2441.2,2441.1,1.1589]
[1728835036481,1.73965,2441.2,2441.1,1.1589]
[1728835036779,1.63965,2441.2,2441.1,1.1589]
[1728835037865,3.18965,2441.2,2441.1,1.1589]
[1728835038169,2.88,2441.2,2441.1,1.1589]
[1728835039873,2.88,2441.2,2441.1,1.56857]
[1728835040578,2.88,2441.2,2441.0,2.205]
[1728835040579,0.40967,2441.1,2441.0,2.205]
[1728835040978,6.0878,2441.2,2441.0,2.205]
[1728835041176,6.0878,2441.2,2441.0,2.61467]
[1728835042268,6.49745,2441.2,2441.0,2.61467]
[1728835042479,6.0878,2441.2,2441.0,2.61467]
[1728835043970,3.2078,2441.1,2441.0,2.61467]
[1728835045283,3.2078,2441.1,2440.6,0.40974]
[1728835045284,0.40971,2440.9,2440.6,0.40974]
[1728835045472,0.40971,2440.9,2440.6,1.112]
[1728835045473,3.61752,2440.8,2440.6,1.112]
[1728835046365,3.61752,2440.8,2440.6,0.40975]
[1728835046776,3.61752,2440.8,2440.6,1.112]
[1728835047472,3.61752,2440.8,2440.6,1.52175]
[1728835048575,0.40973,2440.7,2440.6,1.52175]
[1728835048871,0.40973,2440.7,2440.5,1.0632]
[1728835048872,2.88,2440.7,2440.1,3.2078]
[1728835049179,2.88,2440.7,2439.8,1.70659001]
[1728835049180,0.40984,2440.1,2439.9,2.21]
[1728835049474,2.88,2440.0,2439.8,1.0964]
[1728835049678,6.0878,2439.9,2439.8,1.0964]
[1728835049873,5.9858,2439.9,2439.8,1.0964]
[1728835050073,6.38997,2439.9,2439.8,1.0964]
[1728835050469,5.8801,2439.9,2439.8,1.0964]
[1728835050881,5.7801,2439.9,2439.8,1.0964]
[1728835051074,6.18037,2439.9,2439.8,1.0964]
[1728835052283,3.2078,2439.9,2439.8,1.50629]
[1728835054581,3.2078,2440.0,2439.9,0.40986]
[1728835056574,0.40981,2440.3,2440.1,0.40983]
[1728835056775,0.40981,2440.3,2440.0,1.0655]
[1728835056979,3.28979,2440.4,2440.2,0.40982]
[1728835058471,2.88,2440.4,2440.3,0.4098]
[1728835059577,2.88,2440.6,2440.1,1.0777]
[1728835059778,2.976,2440.8,2440.2,1.02455]
[1728835060082,2.976,2440.8,2440.7,0.40973]
[1728835060283,2.88,2440.8,2440.7,0.40973]
[1728835066187,3.2078,2440.9,2440.8,0.40972]
[1728835067087,2.88,2441.0,2440.9,0.4097]
[1728835067279,3.2078,2441.2,2440.6,5.40035]
[1728835067479,6.0878,2441.2,2441.1,0.40967]
[1728835068486,6.49745,2441.2,2441.1,0.40967]
[1728835069792,6.0878,2441.2,2441.1,0.40967]
[1728835071185,6.49745,2441.2,2441.1,0.40967]
[1728835071685,6.0878,2441.2,2441.1,0.40967]
[1728835072192,2.88,2441.2,2441.1,0.40967]
[1728835074079,3.28965,2441.2,2441.1,0.40967]
[1728835075095,2.88,2441.2,2441.1,0.40967]
[1728835076998,3.28965,2441.2,2441.1,0.40967]
[1728835078997,2.88,2441.2,2441.1,0.40967]
[1728835079392,3.28965,2441.2,2441.1,0.40967]
[1728835080603,2.88,2441.2,2441.1,0.40967]
[1728835081598,3.28965,2441.2,2441.1,0.40967]
[1728835081798,2.88,2441.2,2441.1,0.40967]
[1728835084105,3.28965,2441.2,2441.1,0.40967]
[1728835084300,2.88,2441.2,2441.1,0.40967]
[1728835085906,1.33,2441.2,2441.1,0.40967]
[1728835088800,1.33,2441.2,2441.1,1.48117]
[1728835089000,1.73965,2441.2,2441.1,1.48117]
[1728835089200,1.33,2441.2,2441.1,1.48117]
[1728835089603,1.73965,2441.2,2441.1,1.48117]
[1728835089812,1.33,2441.2,2441.1,1.48117]
[1728835094309,1.73965,2441.2,2441.1,1.48117]
[1728835094506,1.33,2441.2,2441.1,1.48117]
[1728835104623,1.33,2441.2,2441.1,2.55490798]
[1728835104827,1.47299898,2441.3,2441.2,0.40965]
[1728835105125,2.80299898,2441.3,2441.2,0.40965]
[1728835105625,3.33467847,2441.3,2441.2,0.40965]
[1728835106032,2.92503847,2441.3,2441.2,0.40965]
[1728835106325,3.33466847,2441.3,2441.2,0.40965]
[1728835108021,1.59503847,2441.3,2441.2,0.40965]
[1728835108224,1.06686628,2441.4,2441.2,5.18021913]
[1728835108419,1.06686628,2441.5,2441.3,9.98550012]
[1728835108724,1.33,2441.5,2441.4,4.97506327]
[1728835108924,1.33,2441.5,2441.4,6.03116837]
[1728835111022,1.06686628,2441.6,2441.5,0.4096]
[1728835111224,1.06686628,2441.9,2441.5,9.88097323]
[1728835111532,2.92503847,2442.0,2441.9,0.40953]
[1728835111533,1.47638628,2442.0,2441.9,0.40953]
[1728835111823,1.47638628,2442.0,2441.9,2.63152949]
[1728835112029,1.47638628,2442.0,2441.9,5.51729949]
[1728835112232,1.47638628,2442.0,2441.9,3.2953]
[1728835112828,1.73952,2442.0,2441.9,3.2953]
[1728835114229,1.73952,2442.0,2441.9,3.70483]
[1728835114432,1.33,2442.0,2441.9,3.70483]
[1728835115529,1.33,2442.0,2441.9,5.03483]
[1728835115724,3.2078,2442.1,2442.0,0.40952]
[1728835115932,4.5378,2442.1,2442.0,0.40952]
[1728835116235,4.9473,2442.1,2442.0,0.40952]
[1728835116627,4.5378,2442.1,2442.0,0.40952]
[1728835118240,4.9473,2442.1,2442.0,0.40952]
[1728835119328,1.7395,2442.1,2441.9,3.70482]
[1728835119535,1.33,2442.0,2441.9,3.70482]
[1728835119940,1.73952,2442.0,2441.9,3.70482]
[1728835120138,1.33,2442.0,2441.9,3.70482]
[1728835121537,1.73952,2442.0,2441.9,3.70482]
[1728835124239,1.73952,2442.0,2441.9,3.2953]
[1728835132240,1.73952,2442.0,2441.9,3.70483]
[1728835134437,1.73952,2442.0,2441.9,3.2953]
[1728835136246,1.73952,2442.0,2441.9,3.70483]
[1728835144442,1.73952,2442.0,2441.9,1.1037]
[1728835144649,0.40954,2441.9,2441.8,0.40954]
[1728835144843,1.73954,2441.9,2441.7,0.40956]
[1728835145049,1.33,2441.8,2441.7,0.40956]
[1728835145747,1.73955,2441.8,2441.7,0.40956]
[1728835147048,1.33,2441.8,2441.7,0.40956]
[1728835148551,1.73955,2441.8,2441.7,0.40956]
[1728835149149,1.73955,2441.8,2441.7,1.48338599]
[1728835149346,1.33,2441.8,2441.7,1.48338599]
[1728835149946,1.33,2441.8,2441.7,2.55198599]
[1728835150759,1.73955,2441.8,2441.7,2.55198599]
[1728835151160,1.73955,2441.8,2441.7,3.69877676]
[1728835151454,1.33,2441.8,2441.7,3.86777857]
[1728835151644,1.73955,2441.8,2441.7,3.86777857]
[1728835151842,1.73955,2441.8,2441.7,3.45821857]
[1728835152043,4.94735,2441.8,2441.7,1.07382599]
[1728835152252,0.40957,2441.7,2441.6,2.2674]
[1728835152470,0.40957,2441.7,2441.5,1.07382599]
[1728835152471,3.5512,2441.7,2441.5,1.07382599]
[1728835152781,0.4096,2441.5,2441.4,4.20792599]
[1728835152980,1.7396,2441.5,2441.4,5.52441731]
[1728835153173,1.7396,2441.5,2441.4,6.06169455]
[1728835153767,1.7396,2441.5,2441.4,4.36473887]
[1728835156087,1.7396,2441.5,2441.4,4.77435887]
[1728835156088,1.33,2441.5,2441.4,4.77435887]
[1728835156282,1.33,2441.5,2441.4,5.76355887]
[1728835156476,1.33,2441.5,2441.4,6.27513923]
[1728835156771,2.80643628,2441.7,2441.6,0.40958]
[1728835157084,2.80643628,2441.7,2441.6,1.65268752]
[1728835157277,2.80643628,2441.7,2441.6,1.07391964]
[1728835157573,2.80643628,2441.7,2441.6,1.48349964]
[1728835159559,6.01423628,2441.7,2441.6,1.48349964]
[1728835159756,6.01423628,2441.7,2441.6,1.07391964]
[1728835161066,2.80643628,2441.7,2441.5,2.44380964]
[1728835161264,1.33,2441.6,2441.5,2.44380964]
[1728835161457,1.33,2441.6,2441.5,3.76093778]
[1728835161654,4.5378,2441.6,2441.5,3.76093778]
[1728835161856,1.33,2441.6,2441.5,3.19829628]
[1728835162058,1.33,2441.6,2441.5,4.80917575]
[1728835162259,1.33,2441.6,2441.5,3.76055363]
[1728835163862,1.33,2441.6,2441.5,3.76052643]
[1728835164964,1.33,2441.6,2441.5,3.1818158]
[1728835165171,1.73958,2441.6,2441.5,2.44349941]
[1728835165360,1.73958,2441.6,2441.5,2.03389941]
[1728835165556,1.73958,2441.6,2441.5,2.44349941]
[1728835166378,1.73958,2441.6,2441.5,2.03389941]
[1728835166581,1.73958,2441.6,2441.5,2.44349941]
[1728835166780,1.73958,2441.6,2441.5,3.59126937]
[1728835166979,1.73958,2441.6,2441.5,2.44349941]
[1728835167578,1.73958,2441.6,2441.5,2.03389941]
[1728835168175,4.94738,2441.6,2441.5,0.9603]
[1728835168379,6.01424628,2441.6,2441.5,0.9603]
[1728835171082,1.73958,2441.6,2441.5,0.9603]
[1728835175194,4.27466628,2441.7,2441.5,1.3699]
[1728835175387,6.01424628,2441.7,2441.5,1.3699]
[1728835176282,6.01424628,2441.7,2441.6,0.40958]
[1728835176477,6.01424628,2441.7,2441.5,1.36989]
[1728835177081,6.01424628,2441.7,2441.6,0.40958]
[1728835177496,0.40958,2441.6,2441.5,1.36989]
[1728835177687,1.33,2441.6,2441.5,1.36989]
[1728835181792,1.33,2441.6,2441.5,0.9603]
[1728835181793,1.73958,2441.6,2441.5,0.9603]
[1728835182187,3.80694628,2441.6,2441.5,0.9603]
[1728835182491,3.80694628,2441.6,2441.4,2.98859941]
[1728835182492,0.4096,2441.5,2441.4,2.98859941]
[1728835182692,1.7396,2441.5,2441.4,2.98859941]
[1728835187095,1.7396,2441.5,2441.4,1.99939941]
[1728835187698,1.7396,2441.5,2441.4,0.9258]
[1728835187699,7.34426628,2441.5,2441.4,0.9258]
[1728835187884,7.34426628,2441.5,2441.3,1.07359941]
[1728835187885,11.03066628,2441.5,2441.3,1.07359941]
[1728835188086,2.80648628,2441.4,2441.2,1.07359941]
[1728835188291,1.73963,2441.3,2441.2,1.07359941]
[1728835188588,0.40965,2441.2,2441.1,3.03149941]
[1728835188792,1.73965,2441.2,2441.1,3.03149941]
[1728835190092,1.73965,2441.2,2441.1,3.20039801]
[1728835190497,1.73965,2441.2,2441.1,4.34840647]
[1728835190894,0.40965,2441.2,2441.1,4.34840647]
[1728835191093,0.40965,2441.2,2441.1,4.85979824]
[1728835191292,0.40965,2441.2,2441.1,4.34840647]
[1728835191704,0.40965,2441.2,2441.1,4.75807647]
[1728835191898,0.40965,2441.2,2441.1,5.269441]
[1728835192201,0.40965,2441.2,2441.1,4.75807647]
[1728835192598,0.40965,2441.2,2441.1,4.34840647]
[1728835193501,0.40965,2441.2,2441.1,4.75807647]
[1728835193705,0.40965,2441.2,2441.1,5.2694204]
[1728835194095,0.40965,2441.2,2441.1,5.26942026]
[1728835194505,0.40965,2441.2,2441.1,5.26958867]
[1728835195104,4.94744,2441.3,2441.2,0.40965]
[1728835195301,4.94744,2441.3,2441.1,4.77126063]
[1728835195497,4.94744,2441.3,2441.2,1.07371063]
[1728835195901,3.2078,2441.3,2441.2,1.48336063]
[1728835197104,3.61743,2441.3,2441.2,1.48336063]
[1728835197406,4.68429628,2441.3,2441.2,1.48336063]
[1728835197808,3.61743,2441.3,2441.2,1.48336063]
[1728835198207,4.68429628,2441.3,2441.2,1.48336063]
[1728835198703,0.40963,2441.3,2441.2,1.48336063]
[1728835198897,0.40963,2441.3,2441.2,1.07371063]
[1728835199604,2.80649628,2441.3,2441.2,1.07371063]
[1728835199904,1.73963,2441.3,2441.2,1.07371063]
[1728835200106,2.80649628,2441.3,2441.2,1.07371063]
[1728835200405,2.80649628,2441.3,2441.1,3.97843947]
[1728835200406,1.73963,2441.3,2441.1,2.36756]
[1728835201008,1.47534061,2441.3,2441.2,1.07389929]
[1728835203102,1.47534061,2441.3,2441.2,0.16923823]
[1728835203304,1.47534061,2441.3,2441.1,2.36756]
[1728835203704,1.47534061,2441.3,2441.2,0.16924409]
[1728835203905,1.47534061,2441.3,2441.1,2.36756]
[1728835204105,0.40965,2441.2,2441.1,2.36756]
[1728835204301,0.40965,2441.2,2441.1,2.63852863]
[1728835205209,0.40965,2441.2,2441.1,0.9958]
[1728835205412,2.35395,2441.2,2441.1,0.9958]
[1728835205910,0.4097,2440.9,2440.8,0.9553]
[1728835206208,0.4097,2440.9,2440.8,3.05306669]
[1728835206617,0.4097,2440.9,2440.8,2.8838]
[1728835206808,0.4097,2440.9,2440.8,3.05305234]
[1728835207004,0.4097,2440.9,2440.8,0.68055345]
[1728835207205,0.40977,2440.5,2440.4,0.9929]
[1728835207509,7.3868,2441.1,2440.4,2.60882]
[1728835207809,0.40972,2440.8,2440.6,0.40975]
[1728835208011,0.40971,2440.9,2440.7,1.63560334]
[1728835208205,0.40971,2440.9,2440.8,1.16205443]
[1728835208406,0.40971,2440.9,2440.8,0.9929]
[1728835209006,0.40972,2440.8,2440.3,0.40979]
[1728835209207,0.40977,2440.5,2440.4,2.0594593]
[1728835209609,3.61757,2440.5,2440.4,2.0594593]
[1728835209913,3.61757,2440.5,2440.4,1.8903]
[1728835210106,3.61757,2440.5,2440.4,0.9513]
[1728835210311,0.40986,2440.3,2440.1,0.9979]
[1728835210515,3.61766,2440.2,2440.1,0.9979]
[1728835210810,3.59216,2440.2,2440.1,0.9979]
[1728835212313,4.6555514,2440.2,2440.1,0.9979]
[1728835212511,3.59216,2440.2,2440.1,0.9979]
[1728835213021,4.6555514,2440.2,2440.1,0.9979]
[1728835213222,3.59216,2440.2,2440.1,0.9979]
[1728835213812,3.1823,2440.2,2440.0,0.9513]
[1728835214012,3.1823,2440.2,2439.8,0.939]
[1728835214013,0.40991,2439.9,2439.8,0.939]
[1728835214220,3.61771,2439.9,2439.8,0.939]
[1728835215122,0.40993,2439.8,2439.7,1.87]
[1728835216416,3.2078,2439.9,2439.4,0.9676]
[1728835216615,0.40995,2439.7,2439.5,2.41467]
[1728835217224,0.40995,2439.7,2439.5,2.0047]
[1728835217721,0.40995,2439.7,2439.5,2.41468]
[1728835218118,0.40995,2439.7,2439.5,2.0047]
[1728835218614,3.61777,2439.6,2439.3,0.41]
[1728835218821,5.0784,2439.6,2439.3,0.41]
[1728835219024,5.48837,2439.6,2439.2,2.8528]
[1728835219218,5.48837,2439.6,2439.3,0.41]
[1728835219527,5.48837,2439.6,2439.2,2.8528]
[1728835219826,5.48837,2439.6,2439.3,0.41]
[1728835220320,5.48837,2439.6,2439.2,2.8528]
[1728835220321,5.0784,2439.6,2439.2,2.8528]
[1728835220517,5.0784,2439.6,2439.2,1.9162]
[1728835220725,5.0784,2439.6,2439.0,4.55335]
[1728835220726,0.41002,2439.3,2439.0,4.55335]
[1728835221122,0.33552,2439.3,2439.0,4.55335]
[1728835221424,1.58695,2439.5,2439.0,4.1433]
[1728835221620,0.41002,2439.3,2439.0,4.55336]
[1728835221925,0.41003,2439.2,2439.0,0.41006]
[1728835222224,0.41003,2439.2,2439.0,0.9355]
[1728835223025,1.8706,2439.6,2439.0,0.9355]
[1728835223026,3.3038,2439.7,2439.1,4.1]
[1728835223234,3.3038,2439.7,2439.0,4.1433]
[1728835223235,3.2078,2439.7,2439.2,1.0022]
[1728835223531,0.40997,2439.6,2439.4,0.40999]
[1728835223731,0.40997,2439.6,2439.5,0.9261]
[1728835224118,3.61775,2439.7,2439.5,1.33607]
[1728835224514,3.61775,2439.7,2439.5,0.9261]
[1728835224515,0.40996,2439.6,2439.5,0.9261]
[1728835227825,3.61775,2439.7,2439.5,1.33608]
[1728835228228,0.40996,2439.6,2439.5,0.9261]
[1728835228528,3.2078,2439.7,2439.5,0.9261]
[1728835228732,0.40996,2439.6,2439.5,0.9261]
[1728835230724,3.2078,2439.7,2439.5,0.9261]
[1728835230929,0.40996,2439.6,2439.5,0.9261]
[1728835237933,3.61775,2439.7,2439.5,1.33608]
[1728835238234,3.61775,2439.7,2439.6,0.9972]
[1728835238438,3.61775,2439.7,2439.6,1.9872]
[1728835247534,3.61775,2439.7,2439.6,0.9972]
[1728835247737,0.41001,2439.3,2439.2,0.9373]
[1728835247941,0.41001,2439.3,2439.2,2.35343]
[1728835251952,5.19118,2439.5,2439.2,2.35343]
[1728835252241,0.41001,2439.3,2439.2,2.35343]
[1728835254546,0.41001,2439.3,2439.2,1.9434]
[1728835256245,0.41001,2439.3,2439.2,2.35343]
[1728835256246,1.4734014,2439.3,2439.2,2.35343]
[1728835256552,1.4734014,2439.3,2439.2,1.9434]
[1728835258046,2.0050971,2439.3,2439.2,1.9434]
[1728835258245,0.61513127,2439.3,2439.2,1.9434]
[1728835258551,2.5367928,2439.3,2439.2,1.9434]
[1728835258751,2.74191407,2439.3,2439.2,1.9434]
[1728835259346,1.59933127,2439.3,2439.2,1.9434]
[1728835259543,4.0526885,2439.3,2439.2,1.0061]
[1728835259750,10.14116267,2439.3,2439.2,1.0061]
[1728835259956,0.41006,2439.0,2438.9,0.925]
[1728835260161,5.75179371,2439.0,2438.9,1.9335]
[1728835260456,5.95736539,2439.0,2438.9,1.9335]
[1728835260857,3.82298127,2439.0,2438.9,1.9335]
[1728835261358,3.82300461,2439.0,2438.9,1.9335]
[1728835261568,5.95746203,2439.0,2438.9,1.9335]
[1728835263062,5.95746203,2439.0,2438.9,2.34358]
[1728835263255,5.95746203,2439.0,2438.9,1.9335]
[1728835263457,3.82300461,2439.0,2438.9,2.34358]
[1728835263660,3.82300461,2439.0,2438.9,1.9335]
[1728835263852,3.82300461,2439.0,2438.9,2.34358]
[1728835265060,3.82300461,2439.0,2438.9,1.9335]
[1728835265562,7.86556203,2439.0,2438.9,1.9335]
[1728835265767,7.86556433,2439.0,2438.9,1.0085]
[1728835267258,11.96556433,2439.0,2438.9,1.0085]
[1728835270261,5.54741402,2439.0,2438.9,1.41858]
[1728835270561,0.61615742,2439.1,2439.0,4.51006]
[1728835270763,3.2078,2439.3,2439.2,0.41003]
[1728835271057,3.2078,2439.3,2439.2,4.51003]
[1728835271760,1.06544127,2439.4,2439.3,0.41001]
[1728835273562,1.06544127,2439.4,2438.9,2.0975664]
[1728835273765,1.06544127,2439.4,2439.3,0.41001]
[1728835273954,1.06544127,2439.4,2439.0,1.8917]
[1728835274159,1.47543127,2439.4,2439.2,0.41002]
[1728835274358,1.47545127,2439.4,2439.0,1.8917]
[1728835274559,1.47545127,2439.4,2439.2,0.41002]
[1728835274760,1.06544127,2439.3,2439.2,0.41002]
[1728835274964,1.47545127,2439.4,2439.2,0.41002]
[1728835275159,1.06544127,2439.3,2439.2,0.41002]
[1728835275570,1.47545127,2439.4,2439.2,0.41002]
[1728835275875,1.06544127,2439.3,2439.1,0.41004]
[1728835276165,1.06544127,2439.4,2439.2,0.41003]
[1728835276369,1.06544127,2439.4,2439.0,1.8917]
[1728835276667,1.06544127,2439.4,2439.2,0.41001]
[1728835277365,1.06544127,2439.4,2439.3,0.41001]
[1728835280572,1.06544127,2439.5,2439.4,0.40999]
[1728835282264,1.06544127,2439.6,2439.5,0.40998]
[1728835282464,0.40993,2439.8,2439.6,0.40996]
[1728835282465,1.06544127,2439.7,2439.6,0.40996]
[1728835284273,1.47538127,2439.7,2439.6,0.40996]
[1728835284472,1.06544127,2439.7,2439.6,0.40996]
[1728835284766,1.47538127,2439.7,2439.6,0.40996]
[1728835284966,0.40996,2439.6,2439.5,1.965]
[1728835285170,1.47540127,2439.6,2439.5,1.965]
[1728835285365,0.40996,2439.6,2439.5,1.965]
[1728835286664,1.47540127,2439.6,2439.5,1.965]
[1728835287270,1.47540127,2439.6,2439.5,2.37498]
[1728835287471,1.06544127,2439.6,2439.5,2.37498]
[1728835287671,1.47540127,2439.6,2439.5,2.37498]
[1728835287866,1.06544127,2439.6,2439.5,2.37498]
[1728835290380,4.1995,2439.7,2439.6,0.40996]
[1728835290381,4.27324127,2439.7,2439.6,0.40996]
[1728835290573,1.06544127,2439.9,2439.6,4.0992]
[1728835290776,4.27324127,2440.0,2439.7,0.16898942]
[1728835290975,3.2078,2440.0,2439.9,0.40991]
[1728835291376,3.2078,2440.0,2439.9,4.50831]
[1728835291578,3.2078,2440.0,2439.9,7.42461]
[1728835292583,1.06544127,2440.2,2439.9,7.0147]
[1728835292774,2.41388127,2440.3,2440.1,0.40988]
[1728835292970,2.41388127,2440.3,2439.9,2.9163]
[1728835292971,2.00404127,2440.3,2440.2,0.40986]
[1728835293176,3.61763,2440.4,2440.2,0.40986]
[1728835293177,4.27324127,2440.4,2440.2,0.40986]
[1728835293385,4.68307127,2440.4,2440.3,0.9913]
[1728835294080,4.27324127,2440.4,2440.3,1.40114]
[1728835294285,3.2078,2440.4,2440.3,1.40114]
[1728835295282,1.16144127,2440.7,2440.3,11.0889]
[1728835295477,4.27324127,2440.8,2440.7,0.40978]
[1728835295678,3.2078,2440.8,2440.7,0.40978]
[1728835295879,3.2078,2440.8,2440.7,4.50658]
[1728835297379,5.0869,2441.2,2440.7,4.50658]
[1728835297586,5.0869,2441.2,2441.0,0.40971]
[1728835297784,5.0869,2441.2,2440.8,1.9276]
[1728835297785,5.0869,2441.2,2440.8,2.9846]
[1728835297985,5.0869,2441.2,2441.1,0.40971]
[1728835297986,4.1382,2441.2,2441.1,0.40971]
[1728835298287,3.2078,2441.2,2441.1,0.40971]
[1728835301484,3.6175,2441.2,2441.0,1.46672]
[1728835301684,3.6175,2441.2,2441.0,1.057]
[1728835301884,3.6175,2441.2,2440.8,1.9276]
[1728835301885,0.40971,2441.1,2440.8,1.9276]
[1728835302080,3.2078,2441.2,2440.7,1.46677]
[1728835302081,0.40974,2441.0,2440.7,1.46677]
[1728835302391,1.40103,2441.0,2440.8,0.40976]
[1728835302591,1.40103,2441.0,2440.6,4.1215]
[1728835302592,0.9913,2441.0,2440.6,3.2078]
[1728835302796,0.9198,2440.9,2440.6,3.2078]
[1728835302989,4.1276,2440.9,2440.4,1.9169]
[1728835303188,0.40979,2440.7,2440.4,3.38372]
[1728835303493,1.0244,2440.8,2440.4,0.9325]
[1728835303794,0.40981,2440.5,2440.4,0.9325]
[1728835304490,4.1276,2440.9,2440.3,3.2078]
[1728835304685,3.2078,2440.6,2440.1,0.9226]
[1728835304886,0.40983,2440.4,2440.1,1.33247]
[1728835305686,0.40983,2440.4,2440.2,0.40986]
[1728835305892,0.40984,2440.3,2440.1,1.33247]
[1728835306990,1.34374,2440.4,2440.1,1.33247]
[1728835307390,0.40985,2440.3,2440.1,1.33247]
[1728835307693,0.40987,2440.2,2440.0,0.40989]
[1728835308697,3.61766,2440.3,2440.1,0.40987]
[1728835308995,3.2078,2440.3,2440.1,0.40987]
[1728835309200,3.2078,2440.3,2440.2,0.40986]
[1728835309393,3.61765,2440.3,2440.1,0.40987]
[1728835309891,3.2078,2440.3,2440.1,0.40987]
[1728835310091,3.2078,2440.3,2439.9,0.40991]
[1728835310298,3.2078,2440.3,2440.1,0.40987]
[1728835310690,3.61764,2440.3,2440.1,0.40987]
[1728835311199,3.2078,2440.3,2440.2,0.40986]
[1728835311395,3.2078,2440.3,2439.8,1.9995]
[1728835311598,0.40985,2440.3,2439.8,1.9995]
[1728835311800,0.40985,2440.3,2440.0,0.40988]
[1728835312096,0.40985,2440.3,2440.1,0.40987]
[1728835313891,1.34374,2440.4,2440.1,0.40987]
[1728835314296,1.34373,2440.4,2440.2,0.40985]
[1728835315095,1.34373,2440.4,2440.1,0.40987]
[1728835315096,0.40984,2440.3,2440.1,0.40987]
[1728835315905,1.34374,2440.4,2440.1,0.40987]
[1728835317405,4.55154,2440.4,2440.1,0.40987]
[1728835317596,4.55154,2440.4,2439.8,1.9995]
[1728835317798,4.55154,2440.4,2440.2,0.40985]
[1728835318001,4.1417,2440.4,2439.8,1.9995]
[1728835318196,4.1417,2440.4,2440.3,0.40984]
[1728835318498,3.2078,2440.4,2439.9,1.02478]
[1728835318807,3.61763,2440.4,2440.2,0.40985]
[1728835318998,3.2078,2440.4,2440.3,0.40984]
[1728835319200,0.9552,2440.5,2440.4,0.40983]
[1728835320307,1.36501,2440.5,2440.3,0.40984]
[1728835320598,0.40984,2440.3,2440.1,2.0412]
[1728835320800,0.40984,2440.3,2440.1,2.45107]
[1728835321106,0.40984,2440.3,2440.1,1.46487]
[1728835321503,4.163,2440.5,2440.1,1.055]
[1728835321805,4.57281,2440.5,2440.3,0.40983]
[1728835322005,0.40983,2440.4,2440.2,1.39445]
[1728835322205,4.163,2440.5,2440.2,0.9846]
[1728835322398,0.40984,2440.3,2440.1,0.40986]
[1728835322598,4.163,2440.5,2440.0,1.9946]
[1728835322802,0.40983,2440.4,2440.2,0.40985]
[1728835323197,4.57282,2440.5,2440.3,0.40983]
[1728835323601,4.163,2440.5,2440.0,1.9946]
[1728835323808,0.40984,2440.4,2440.1,0.40988]
[1728835324006,0.40984,2440.4,2440.2,0.40986]
[1728835324304,0.40984,2440.4,2439.9,0.40989]
[1728835324305,1.02457,2440.4,2439.9,0.40989]
[1728835324509,0.40992,2439.9,2439.7,3.36934]
[1728835324711,0.40992,2439.9,2439.7,1.38594]
[1728835325011,0.40992,2439.9,2439.7,5.48434]
[1728835325012,0.9306,2439.8,2439.7,5.48434]
[1728835325206,0.9306,2439.8,2439.7,1.38594]
[1728835325403,0.9306,2439.8,2439.5,1.9171]
[1728835325911,1.34054,2439.8,2439.5,1.9171]
[1728835326104,1.34054,2439.8,2439.6,0.40996]
[1728835326500,0.9306,2439.8,2439.5,1.9171]
[1728835326806,3.2078,2439.9,2439.8,0.40993]
[1728835328010,1.0503,2440.3,2439.8,4.50833]
[1728835328011,3.2078,2440.2,2439.8,4.50833]
[1728835328213,3.2078,2440.2,2440.1,0.40988]
[1728835328414,3.2078,2440.2,2439.9,1.9757]
[1728835328415,0.9463,2440.4,2440.3,0.40984]
[1728835329412,3.6176,2440.6,2440.3,0.40984]
[1728835329614,3.6176,2440.6,2440.4,1.0075]
[1728835329805,3.6176,2440.6,2440.4,1.9757]
[1728835330707,3.6176,2440.6,2440.4,2.38552]
[1728835330919,3.6176,2440.6,2440.4,1.9757]
[1728835331512,0.40981,2440.5,2440.4,1.9757]
[1728835331714,3.2078,2440.6,2440.4,1.9757]
[1728835332104,0.096,2440.9,2440.7,0.40976]
[1728835332306,0.40975,2440.9,2440.7,0.40976]
[1728835332607,5.67839658,2441.0,2440.8,1.39876]
[1728835332915,0.40974,2440.9,2440.8,0.989]
[1728835333604,5.67840658,2441.0,2440.8,0.989]
[1728835333809,5.67840658,2441.0,2440.8,1.39875]
[1728835334611,5.67840658,2441.0,2440.9,0.40974]
[1728835334805,5.26866658,2441.0,2440.9,0.40974]
[1728835335208,5.67838658,2441.0,2440.9,1.33264]
[1728835335409,4.27186658,2441.0,2440.9,1.33264]
[1728835335709,3.2078,2441.0,2440.9,1.33264]
[1728835336710,3.2078,2441.0,2440.9,5.42944]
[1728835337007,3.2078,2441.0,2440.9,11.42944]
[1728835337617,4.27186658,2441.3,2440.9,11.0197]
[1728835337805,1.06406658,2441.6,2441.3,0.40966]
[1728835338311,3.2078,2441.7,2441.5,0.40963]
[1728835338713,3.61741,2441.7,2441.4,0.40965]
[1728835338906,3.61741,2441.7,2441.5,0.9972]
[1728835339104,0.40962,2441.6,2441.3,1.41216]
[1728835339406,0.40962,2441.6,2441.3,2.46716]
[1728835340211,3.2078,2441.7,2441.6,0.40962]
[1728835346416,1.45696,2442.0,2441.4,1.055]
[1728835346619,3.2078,2441.9,2441.8,0.40959]